Cogmind - Beta 13 @@@ ROGUE MODE // 2024.05.03 @ 08:59:26 Player: ThatBishHoly Result: Destroyed by Y-45 Defender with Beam Rifle Performance ------------- Evolutions (2) 1000 Regions Visited (5) 1000 Robots Destroyed (19) 95 Value Destroyed (539) 539 Prototype IDs (1) 20 Alien Tech Used (0) 0 Bonus (-1) -1 TOTAL SCORE: 2653 Bonus ------- Follower Combat Kills 91 Friendly Fire -92 Cogmind --------- Core Integrity 0/550 Matter 117/300 Energy 100/100 System Corruption 0% Temperature Cool (9) Movement Core (100) Ox1 Location -8/Storage Parts ------- > --- POWER (1) -------- (None) > --- PROPULSION (4) --- (None) > --- UTILITY (3) ------ (None) > --- WEAPON (3) ------- Great Maul > --- INVENTORY (5) ---- Flak Cannon Peak State ------------ > --- POWER ------------ Heavy Ion Engine > --- PROPULSION ------- Aluminum Leg Aluminum Leg Aluminum Leg VSS Leg > --- UTILITY ---------- Signal Interpreter Hardened Light Armor Plating > --- WEAPON ----------- Minigun High-powered Shotgun Mini Grenade Launcher > --- INVENTORY -------- High-powered Shotgun Flak Cannon Heavy Mace Great Maul [Rating: 21] Favorites ----------- Power Light Nuclear Core Engine Light Ion Engine Power Core Light Nuclear Core Propulsion Aluminum Leg Treads Improved Treads Leg Aluminum Leg Utility Light Armor Plating Device Structural Scanner Processor Signal Interpreter Protection Light Armor Plating Weapon High-powered Shotgun Energy Gun Medium Laser Ballistic Gun High-powered Shotgun Launcher Mini Grenade Launcher Special Weapon Mining Laser Impact Weapon Great Maul Build | -11 -10 -10 -9 -8 -8 ------- Run | Yrd Mat Min Mat Mat Sto Slots Evolved 4 | . . . 2 2 . Power . | . . . . . . Propulsion 2 | . . . 2 . . Utility 1 | . . . . 1 . Weapon 1 | . . . . 1 . Parts Attached 27 | 5 3 1 10 5 3 Power 4 | 1 1 . 1 1 . Engine 3 | 1 . . 1 1 . Core 1 | . 1 . . . . Reactor . | . . . . . . Propulsion 8 | 2 . 1 3 2 . Treads 1 | . . . 1 . . Leg 7 | 2 . 1 2 2 . Wheel . | . . . . . . Hover . | . . . . . . Flight . | . . . . . . Utility 4 | . 1 . 3 . . Device 1 | . . . 1 . . Storage . | . . . . . . Processor 1 | . . . 1 . . Hackware . | . . . . . . Protection 2 | . 1 . 1 . . Artifact . | . . . . . . Weapon 11 | 2 1 . 3 2 3 Energy Gun 2 | 1 . . 1 . . Energy Cannon . | . . . . . . Ballistic Gun 5 | 1 . . 1 2 1 Ballistic Cannon . | . . . . . . Launcher 2 | . . . 1 . 1 Special Weapon 1 | . 1 . . . . Impact Weapon 1 | . . . . . 1 Slashing Weapon . | . . . . . . Piercing Weapon . | . . . . . . Special Melee Weapon . | . . . . . . Unidentified Prototypes 1 | . . . . 1 . Parts Lost 18 | . 1 2 2 10 3 Power 2 | . . . 1 1 . Propulsion 5 | . . . . 5 . Utility 3 | . . . 1 1 1 Weapon 8 | . 1 2 . 3 2 Highest Loss Streak 8 | . 1 2 2 8 3 To Critical Strikes . | . . . . . . Average Slot Usage (%) 73 | . 77 77 68 84 32 Engine 4 | . 9 . 1 9 . Core 6 | . 4 14 6 . . Leg 25 | . 28 28 23 32 . Processor 3 | . . . 1 9 9 Protection 10 | . 11 14 9 8 . Energy Gun 6 | . 14 10 1 . . Ballistic Gun 7 | . 7 . 7 17 8 Launcher 4 | . . . 9 8 6 Special Weapon 3 | . . 9 . . . Naked Turns . | . . . . . . Heaviest Build 20 | 7 11 11 16 20 13 Greatest Support 42 | 20 20 20 40 42 3 Greatest Overweight (x) 4 | . . . . 2 4 Average Overweight (x) . | . . . . . 2 Largest Inventory Capacity 5 | 5 5 5 5 5 5 Average Capacity 5 | 5 5 5 5 5 5 Most Carried 5 | 5 3 2 5 5 4 Average Carried 2 | . . 2 3 4 1 Final Capacity 5 | 5 5 5 5 5 5 Final Carried 5 | . 2 2 5 4 1 Class Distribution -------------------- 79% | Mutant 12% | Tank 8% | Scavenger-Tank Dominant Class ---------------- Mutant | -10/Materials Mutant | -10/Mines Mutant | -9/Materials Tank | -8/Materials Mutant | -8/Storage Resources | -11 -10 -10 -9 -8 -8 ----------- Run | Yrd Mat Min Mat Mat Sto Matter Collected 570 | 178 126 20 37 155 54 Remotely . | . . . . . . Salvage Created 550 | . 168 . 44 217 121 Parts 36 | . 5 . 5 20 6 Haulers Intercepted 1 | . . . . 1 . Recyclers Shooed . | . . . . . . Parts Field Recycled . | . . . . . . Retrieved Matter . | . . . . . . Parts Self-Destructed . | . . . . . . Prevented . | . . . . . . Kills | -11 -10 -10 -9 -8 -8 ------- Run | Yrd Mat Min Mat Mat Sto Combat Hostiles Destroyed 11 | . 3 . 2 3 3 Guns 4 | . 3 . . 1 . AOE 6 | . . . 2 2 2 Classes Destroyed 8 | . 2 . . 6 . Worker 2 | . . . . 1 1 Builder 2 | . 1 . . 1 . Tunneler 1 | . . . . 1 . Hauler 1 | . . . . 1 . Watcher 2 | . . . . 2 . Grunt 7 | . 3 . 2 1 1 Brawler 1 | . . . . 1 . Sentry 3 | . . . . 1 2 Best Kill Streak 3 | . 2 . 1 3 3 Combat Bots Only 2 | . 1 . 1 2 2 Max Kills in Single Turn 2 | . 1 . 1 2 2 Gunslinging . | . . . . . . Exploded 1 | . . . 1 1 1 Melee . | . . . . . . Uniques/NPCs Destroyed . | . . . . . . Combat | -11 -10 -10 -9 -8 -8 -------- Run | Yrd Mat Min Mat Mat Sto Hostile Shots Fired 234 | . 35 18 12 90 79 Missed 73 | . 7 5 4 25 32 Damage Taken 2678 | . 381 191 177 1226 703 Core 753 | . 85 64 47 189 368 Absorbed by Shields . | . . . . . . Core Remaining (%) 76 | 100 . 40 88 . . Volleys Fired 41 | . 19 . 5 13 4 Largest 3 | . 2 . 2 3 2 Hottest 80 | . 70 . 55 80 61 Shots Fired 82 | . 32 . 10 35 5 Gun 62 | . 32 . 5 23 2 Cannon . | . . . . . . Launcher 20 | . . . 5 12 3 Special . | . . . . . . Kinetic 43 | . 13 . 5 23 2 Thermal 19 | . 19 . . . . Explosive 20 | . . . 5 12 3 Electromagnetic . | . . . . . . Robot Hit Streak 5 | . 5 . 1 5 4 Robot Miss Streak 7 | . 3 . 7 6 1 Penetration Max . | . . . . . . Secondary Targets . | . . . . . . Shots Hit Robots 44 | . 19 . 2 17 6 Core Hits 39 | . 7 1 5 20 6 Critical Kills . | . . . . . . Critical Parts Destroyed . | . . . . . . Critical Strikes . | . . . . . . Melee Attacks 2 | . . . . . 2 Impact 2 | . . . . . 2 Slashing . | . . . . . . Piercing . | . . . . . . Sneak Attacks . | . . . . . . Combat Hostiles . | . . . . . . Follow-up Attacks . | . . . . . . Damage Inflicted 1741 | . 309 19 193 990 230 Guns 536 | . 309 . 22 164 41 Cannons . | . . . . . . Explosions 1136 | . . . 167 826 143 Melee 46 | . . . . . 46 Ramming 23 | . . 19 4 . . Kinetic 362 | . 135 . 22 164 41 Thermal 174 | . 174 . . . . Explosive 1136 | . . . 167 826 143 Electromagnetic . | . . . . . . Impact 46 | . . . . . 46 Slashing . | . . . . . . Piercing . | . . . . . . Highest Corruption . | . . . . . . Average Corruption . | . . . . . . Corruption Purged . | . . . . . . Corruption Blocked . | . . . . . . Overload Shots . | . . . . . . Overflow Damage 20 | . . . 13 1 6 Projectiles . | . . . . . . Explosions 14 | . . . 13 1 . Melee 6 | . . . . . 6 Knockbacks . | . . . . . . Impact . | . . . . . . Kinetic . | . . . . . . Secondary . | . . . . . . Self-Inflicted Damage 280 | . . . 90 190 . Shots 9 | . . . 3 6 . Rammed . | . . . . . . Targets Rammed 12 | . . 11 1 . . Kicked 12 | . . 11 1 . . Crushed . | . . . . . . Highest Temperature 400 | . 400 . 3 81 6 Average Temperature 119 | . 185 . 2 27 6 Received Heat Transfer 921 | . 240 102 48 351 180 Effects 2 | . 2 . . . . Shutdowns 1 | . 1 . . . . Energy Bleed 1 | . 1 . . . . Siege Activations . | . . . . . . Robots Corrupted . | . . . . . . Combat Hostiles . | . . . . . . Parts Fried 1 | . . . . . 1 Impact Corruptions 1 | . . . . . 1 Robots Melted . | . . . . . . Combat Hostiles . | . . . . . . Parts Melted . | . . . . . . Heat Transferred 518 | . 518 . . . . Parts Sabotaged . | . . . . . . Parts Stolen . | . . . . . . Parts Stripped . | . . . . . . Power Chain Reactions . | . . . . . . Alert | -11 -10 -10 -9 -8 -8 ------- Run | Yrd Mat Min Mat Mat Sto Peak Influence 386 | . 80 31 166 386 244 Initial 137 | . . 31 . 69 137 Average 82 | . 34 24 56 198 206 Maximum Alert Level 1 | . . . . 1 1 Low Security (%) 82 | 100 100 100 100 43 31 Level 1 17 | . . . . 56 68 Level 2 . | . . . . . . Level 3 . | . . . . . . Level 4 . | . . . . . . Level 5 . | . . . . . . High Security . | . . . . . . Max Security . | . . . . . . Squads Dispatched 4 | . . . 2 1 1 Investigation 1 | . . . 1 . . Extermination . | . . . . . . Reinforcement 3 | . . . 1 1 1 Assault . | . . . . . . Garrison . | . . . . . . Intercept . | . . . . . . Searches Triggered . | . . . . . . Construction Impeded . | . . . . . . Haulers Reinforced . | . . . . . . Active Scanning Responses . | . . . . . . Cargo Convoy Interrupts . | . . . . . . Stealth | -11 -10 -10 -9 -8 -8 --------- Run | Yrd Mat Min Mat Mat Sto Distress Signals 2 | . . . . 2 . Communications Jammed . | . . . . . . Distress Signals . | . . . . . . Times Spotted 35 | . 5 3 7 13 7 Peak Tracking Total 6 | . 3 2 2 6 5 Tactical Retreats 1 | . . 1 . . . Traps | -11 -10 -10 -9 -8 -8 ------- Run | Yrd Mat Min Mat Mat Sto Traps Triggered . | . . . . . . Indirectly . | . . . . . . Trap Hack Attempts . | . . . . . . Triggered . | . . . . . . Disarmed . | . . . . . . Reprogrammed . | . . . . . . Reused . | . . . . . . Traps Extracted . | . . . . . . Installed . | . . . . . . Triggered . | . . . . . . Machines | -11 -10 -10 -9 -8 -8 ---------- Run | Yrd Mat Min Mat Mat Sto Machines Disabled 2 | . . . . 2 . Max in Single Turn 2 | . . . . 2 . Machines Repaired . | . . . . . . Machines Dismantled . | . . . . . . Machines Sabotaged . | . . . . . . Overloaded Fab Kills . | . . . . . . Hacking | -11 -10 -10 -9 -8 -8 --------- Run | Yrd Mat Min Mat Mat Sto Machines Accessed 6 | . 3 . 2 1 . Terminals 4 | . 2 . 1 1 . Fabricators . | . . . . . . Repair Stations . | . . . . . . Recycling Units 2 | . 1 . 1 . . Scanalyzers . | . . . . . . Garrison Access . | . . . . . . Total Hacks 15 | . 6 . 7 2 . Successful 7 | . 2 . 3 2 . Failed 8 | . 4 . 4 . . Catastrophic . | . . . . . . Database Lockouts . | . . . . . . Manual . | . . . . . . Terminals 11 | . 5 . 4 2 . Fabricators . | . . . . . . Repair Stations . | . . . . . . Recycling Units 4 | . 1 . 3 . . Scanalyzers . | . . . . . . Garrison Access . | . . . . . . Terminal Hacks 4 | . 1 . 1 2 . Branch Access Points 1 | . . . . 1 . Recall Reinforcements 1 | . . . . 1 . Zone Layout 2 | . 1 . 1 . . Fabricator Hacks . | . . . . . . Repair Station Hacks . | . . . . . . Recycling Unit Hacks 3 | . 1 . 2 . . Report Inventory 2 | . 1 . 1 . . Retrieve Components 1 | . . . 1 . . Scanalyzer . | . . . . . . Garrison Access Hacks . | . . . . . . Unauthorized Hacks . | . . . . . . Terminals . | . . . . . . Fabricators . | . . . . . . Repair Stations . | . . . . . . Recycling Units . | . . . . . . Scanalyzers . | . . . . . . Garrison Access . | . . . . . . Data Cores Recovered 1 | . . . . 1 . Used . | . . . . . . Hacking Detections 2 | . 1 . 1 . . Full Trace Events 1 | . . . 1 . . Feedback Events . | . . . . . . Feedback Blocked . | . . . . . . Robot Schematics Acquired . | . . . . . . Robots Built . | . . . . . . Authchips . | . . . . . . Time . | . . . . . . Total Robot Build Rating . | . . . . . . Part Schematics Acquired . | . . . . . . Parts Built . | . . . . . . Authchips . | . . . . . . Time . | . . . . . . Total Part Build Rating . | . . . . . . Parts Repaired . | . . . . . . Time . | . . . . . . Parts Recycled . | . . . . . . Recycled Matter . | . . . . . . Retrieved Matter . | . . . . . . Retrieved Components 6 | . . . 6 . . Parts Scanalyzed . | . . . . . . Part Schematics Acquired . | . . . . . . Parts Damaged . | . . . . . . Bothacking | -11 -10 -10 -9 -8 -8 ------------ Run | Yrd Mat Min Mat Mat Sto Used RIF Installer . | . . . . . . Robots Hacked . | . . . . . . Non-combat . | . . . . . . Combat . | . . . . . . Robot Hacks Applied . | . . . . . . Relay Couplers Released . | . . . . . . Fabnet Peak Effective % . | . . . . . . Robots Rewired . | . . . . . . Allies Hacked . | . . . . . . Hacks Repelled . | . . . . . . Allies | -11 -10 -10 -9 -8 -8 -------- Run | Yrd Mat Min Mat Mat Sto Total Allies 3 | . . 3 . . . Largest Group 3 | . . 3 3 2 . Highest-Rated Group 40 | . . 40 40 32 . Highest-Rated Ally 16 | . . 16 16 16 . Total Orders . | . . . . . . Ally Attacks 36 | . . . 16 20 . Total Damage 354 | . . . 113 241 . Kills 6 | . . . 3 3 . Allies Corrupted . | . . . . . . Allies Melted . | . . . . . . Intel | -11 -10 -10 -9 -8 -8 ------- Run | Yrd Mat Min Mat Mat Sto Robot Analysis Total . | . . . . . . Derelict Logs Recovered 2 | . . 2 . . . Drone Launches . | . . . . . . Drone Recoveries . | . . . . . . Exploration | -11 -10 -10 -9 -8 -8 ------------- Run | Yrd Mat Min Mat Mat Sto Turns Passed 1673 | 64 335 484 303 356 131 Spaces Moved 1129 | 59 224 313 216 265 52 Core 84 | 23 . . . 9 52 Treads 2 | . . . 2 . . Legs 1043 | 36 224 313 214 256 . Wheels . | . . . . . . Hover . | . . . . . . Flight . | . . . . . . Fastest Speed 50 | 50 120 120 120 50 50 Average Speed 120 | 92 120 120 120 113 196 Slowest Speed 250 | 120 120 120 160 150 250 Overloaded Moves . | . . . . . . Propulsion Burnouts . | . . . . . . Robots Hopped . | . . . . . . Cave-ins Triggered . | . . . . . . Exploration Rate (%) 21 | 4 30 39 21 25 12 Regions Visited 5 Branch Regions 2 Pre-discovered Areas . | . . . . . . Known Exits Taken 2 | . . . 1 1 . Unknown Exits Taken 3 | 1 1 1 . . . Scrap Searched 1 | . . 1 . . . Spaces Dug 12 | . . . . 12 . Terrain Destroyed 179 | . . . 50 100 29 Melee . | . . . . . . Projectile . | . . . . . . AOE 179 | . . . 50 100 29 Terrain Rammed . | . . . . . . Walls Destroyed . | . . . . . . Machines Disabled . | . . . . . . Actions | -11 -10 -10 -9 -8 -8 --------- Run | Yrd Mat Min Mat Mat Sto Total 1358 | 68 258 418 247 296 71 Wait 115 | . 7 94 4 . 10 Move 1124 | 58 223 312 215 264 52 Hop . | . . . . . . Pick Up 26 | 5 5 . 9 7 . Fast Attach 5 | . . . 4 1 . Attach 17 | 5 2 . 4 3 3 Detach . | . . . . . . Swap 5 | . 1 1 2 1 . Drop 11 | . 1 . 3 7 . Fire 41 | . 19 . 5 13 4 Melee 2 | . . . . . 2 Ram . | . . . . . . Kick 12 | . . 11 1 . . Crush . | . . . . . . Escape Stasis . | . . . . . . Rewire . | . . . . . . Trap . | . . . . . . Miscellaneous . | . . . . . . Route ------- -11/Scrapyard -10/Materials (discovered 2 exits: *Mat / [*Min]) -10/Mines -9/Materials -8/Materials -8/Storage History --------- Turn | Location | Event 6 | -11/Scrapyard | Discovered new exit (range 16) 65 | -11/Scrapyard | Entered Materials 143 | -10/Materials | Discovered new exit (range 8) 308 | -10/Materials | Build established: Mutant 324 | -10/Materials | Discovered new exit (range 10) 400 | -10/Materials | Entered Mines 421 | -10/Mines | Met a Derelict bent on vengeance 627 | -10/Mines | Learned location of 1 exit from Materials 805 | -10/Mines | Core integrity fell below 50% 863 | -10/Mines | Discovered new exit (range 8) 869 | -10/Mines | Assisted by bots powering up and referring to "LRC-V3" 884 | -10/Mines | Entered Materials 884 | -9/Materials | Accompanied by 3 allies 884 | -9/Materials | Evolved 2 slots: Propulsion x2 885 | -9/Materials | Identified exit to Materials 1187 | -9/Materials | Entered another Materials area 1187 | -8/Materials | Accompanied by 2 allies 1187 | -8/Materials | Evolved 2 slots: Utility x1, Weapon x1 1188 | -8/Materials | Identified exit to Storage 1543 | -8/Materials | Entered Storage 1572 | -8/Storage | Lost 8 parts (1p3n1u3w) 1616 | -8/Storage | Core integrity fell below 50% 1669 | -8/Storage | Core integrity fell below 20% 1674 | -8/Storage | Destroyed by Y-45 Defender with Beam Rifle Last Messages --------------- 01636_ Missile Launcher destroyed. 01641_ Slug penetrates Earth. 01646_ Slug penetrates Wall. 01659_ R-06 Scavenger collects Beam Rifle. 01661_ Hpw. Shotgun destroyed. 01664_ U-05 Engineer lays Concrete. 01665_ Destroyed Imp. Heat Sink. 01665_ G-47 Trooper system corrupted by crushing effect. 01666_ G-47 Trooper system terminally corrupted. 01666_ Aluminum Leg fried. 01666_ U-05 Engineer lays Concrete. 01667_ U-05 Engineer builds a Wall. 01668_ Penetrated by Slug. 01668_ Acquired 54 matter. 01671_ U-05 Engineer lays Concrete. 01672_ Signal Interpreter destroyed. 01672_ Critical hit (Burn: +37). 01673_ U-05 Engineer lays Concrete. 01673_ R-06 Scavenger collects Imp. Ion Engine. Map ----- +----------------------------------------------------+ | ?????????????????????????????????????????????????? | | ?????????????????????????????????????????????????? | | ?????????????????????????????????????????????????? | | ?????????????????????????????????????????????????? | | ?????????????????????????????????????????????????? | | ??????????????????#/#########????????????????????? | | ??????????????????# #????????????????????? | | ??????????????????# !! #????????????????????? | | ??????????????????# #????????????????????? | | ??????????????????# #????????????????????? | | ??????????????????# #????????????????????? | | ??????????????????? #????????????????????? | | ???????????????????? = #####????????????????? | | ????????????????????? %o# """ ""?????????????? | | ????????????????????## ##r# """ """????????????? | | ????????????????????# u # """ """ #??????????? | | ????????????????????## r #??????????? | | ????????????????????# # % #??????????? | | ????????????????????# # ! / #??????????? | | ????????????????????## # #??????????? | | ?????????????????????# % # #??????????? | | ?????????????????????## # # ##"T"###??????????? | | ?????????????????????# #?#?????????????????? | | ??????????????????????# ###???????????????????? | | ??????????????????????## Y #?????????????????????? | | ???????????????????????# @g#?????????????????????? | | ???????????????????????# *h#?????????????????????? | | ???????????????????????# g #?????????????????????? | | ???????????????????????# #?????????????????????? | | ??????################## #?????????????????????? | | ???#### #?????????????????????? | | ?# #?????????????????????? | | ???#### #?????????????????????? | | ??????######################?????????????????????? | | ?????????????????????????????????????????????????? | | ?????????????????????????????????????????????????? | | | | | | | | | | | | | | | | | | | | | | | | | | | | | +----------------------------------------------------+ Best States ------------- Heat Dissipation 31 Energy Generation 14 Energy Capacity 280 Matter Stores 300 Matter Capacity 300 Sight Range 16 Terrain Scan Density 10 Armor Coverage 150 Evasion (%) 55 Item Schematics ----------------- None Robot Schematics ------------------ None Fabricated ------------ Nothing Alien Tech Used ----------------- None Achievements -------------- None Challenges ------------ None Game ------ Seed RiotLightpackMagmablaster Manual? 0 Play Time 00:18:25 Cumulative 18.8 hours Start 2024.05.02 @ 20:50:18 End 2024.05.03 @ 08:59:26 Sessions 1 Manual Loads 0 Difficulty Rogue Special Mode None Game No. 55 Rogue 55 Adventurer 0 Explorer 0 Win Type - Total 0 Types 0/0/0/0/0/0/0/0/0 Lore% 13 Gallery% 29 Achievement% 21 Wizard Run 0 Options --------- Layout 1 ASCII 0 Keyboard 0 Movement Arrows Keybinds 0 Fullscreen 1 Font 16/SmallcapsGlow Map View 25x20 Zoom Use 93% Tactical HUD 1 Map Filters NONE Filters NONE Steam SD RUN: 16c67c79-e7d8-4112-a696-ecb2eeadfb3a